bitfinex-derivatives/quotes_ETHF0:USTF0_20250106
["timestamp","ask_amount","ask_price","bid_price","bid_amount"]
[1736123733281,0.24779,3632.7,3632.4,0.8338]
[1736123733689,3.2078,3633.1,3632.4,0.8338]
[1736123734082,0.24779,3632.7,3632.4,0.8338]
[1736123734379,3.2078,3633.1,3632.4,0.4096]
[1736123734583,0.24779,3632.8,3632.4,0.4096]
[1736123734881,0.24779,3632.6,3632.4,0.4096]
[1736123735284,3.2078,3633.1,3632.4,0.4096]
[1736123735474,3.2078,3633.1,3632.4,0.65741]
[1736123735681,0.24778,3632.8,3632.4,0.65741]
[1736123735873,3.2078,3633.1,3632.4,0.65741]
[1736123736075,2.62051009,3633.2,3632.4,0.65741]
[1736123736076,0.67944,3633.4,3633.0,0.24776]
[1736123736272,0.67944,3633.4,3633.1,0.8893]
[1736123736678,0.24779,3632.7,3632.3,3.45821198]
[1736123736881,2.62051009,3633.2,3632.4,0.4388]
[1736123736882,3.23990009,3633.2,3632.4,0.4388]
[1736123737082,0.2478,3632.5,3632.4,0.4388]
[1736123737282,0.24781,3632.4,3632.3,3.21040198]
[1736123737480,0.24781,3632.4,3632.3,0.00260198]
[1736123742883,0.4103,3632.7,3632.3,0.00260198]
[1736123743489,0.24781,3632.4,3632.3,0.00260198]
[1736123744180,3.2078,3632.6,3632.3,0.00260198]
[1736123744376,0.4103,3632.7,3632.3,0.00260198]
[1736123744583,0.24779,3632.6,3632.3,0.00260198]
[1736123745289,0.24781,3632.4,3632.3,0.00260198]
[1736123746289,0.24779,3632.6,3632.3,0.00260198]
[1736123746492,2.62818034,3632.7,3632.3,0.00260198]
[1736123746683,0.24779,3632.6,3632.3,0.00260198]
[1736123746889,0.24781,3632.5,3632.3,0.00260198]
[1736123747091,0.24781,3632.4,3632.3,0.00260198]
[1736123747794,2.46569034,3632.4,3632.3,0.00260198]
[1736123749080,2.46569034,3632.4,3631.2,3.2078]
[1736123749081,0.24787,3631.5,3631.2,3.2078]
[1736123749286,2.46575034,3631.5,3631.2,3.2078]
[1736123749587,2.46575034,3631.5,3631.1,0.24789]
[1736123749989,2.21788034,3631.5,3631.1,0.24789]
[1736123750294,2.46575034,3631.5,3631.1,0.24789]
[1736123750493,2.21788034,3631.5,3631.0,0.4153]
[1736123750694,2.46575034,3631.5,3631.1,0.2479]
[1736123751087,2.21788034,3631.5,3631.1,0.2479]
[1736123751297,0.24788,3631.4,3631.0,0.4153]
[1736123751493,0.24788,3631.4,3631.0,0.6632]
[1736123751989,0.24788,3631.4,3631.1,0.24789]
[1736123752295,0.24788,3631.3,3631.0,0.4153]
[1736123752485,0.24788,3631.4,3631.1,0.24789]
[1736123752685,2.21788034,3631.5,3631.0,0.6632]
[1736123752686,0.24788,3631.3,3631.0,0.6632]
[1736123754090,2.21788034,3631.5,3631.0,0.6632]
[1736123754294,0.24787,3631.4,3631.1,0.24789]
[1736123754492,0.24789,3631.3,3631.0,0.6632]
[1736123755090,2.21788034,3631.5,3631.0,0.4153]
[1736123755294,0.24788,3631.3,3631.0,0.6632]
[1736123757593,0.2479,3631.1,3631.0,0.4153]
[1736123757793,0.24792,3630.8,3630.7,4.69599718]
[1736123757993,2.46580034,3630.8,3630.7,4.69599718]
[1736123758798,2.46580034,3630.8,3630.7,0.4369]
[1736123763299,0.24792,3630.7,3630.6,0.4326]
[1736123764602,0.24791,3631.0,3630.6,0.68053]
[1736123765195,0.24791,3630.9,3630.6,0.4326]
[1736123765397,2.21788034,3631.1,3630.6,0.4326]
[1736123765598,0.24791,3631.0,3630.6,0.68053]
[1736123765992,3.2078,3631.6,3630.7,3.2078]
[1736123766193,4.35016099,3632.0,3631.1,3.2078]
[1736123766499,4.35016099,3632.0,3631.8,0.24784]
[1736123766695,2.21788034,3632.0,3631.9,0.8546]
[1736123767092,2.13228065,3632.1,3631.9,0.8546]
[1736123767397,2.13228065,3632.1,3632.0,0.68973]
[1736123767601,1.45558065,3632.1,3632.0,3.89753]
[1736123767801,1.45558065,3632.1,3632.0,8.89753]
[1736123768001,2.21788034,3632.9,3632.0,8.89753]
[1736123768002,2.14764438,3633.1,3632.0,8.6497]
[1736123768301,2.14764438,3633.1,3633.0,0.24777]
[1736123768807,2.14764438,3633.1,3633.0,0.66237]
[1736123769403,0.17582504,3633.1,3633.0,0.66237]
[1736123769806,2.21788034,3633.5,3633.3,0.24775]
[1736123770006,2.21788034,3633.5,3633.3,3.45555]
[1736123770306,2.21788034,3633.5,3633.3,3.2078]
[1736123771203,2.21788034,3633.5,3633.2,0.24775]
[1736123771404,2.21788034,3633.5,3633.0,0.4146]
[1736123771405,2.21788034,3633.5,3633.3,0.24774]
[1736123771599,2.46560034,3633.8,3633.4,0.24774]
[1736123771805,2.21788034,3633.8,3633.5,0.24773]
[1736123772007,2.65908034,3634.4,3633.4,3.2078]
[1736123772299,3.45547,3634.5,3634.1,0.24769]
[1736123772500,2.21788034,3634.7,3634.4,3.45546]
[1736123772707,2.21788034,3634.7,3634.4,3.2078]
[1736123773009,3.22013466,3634.8,3634.6,0.24765]
[1736123773310,3.22013466,3634.8,3634.4,3.2078]
[1736123773311,3.22013466,3634.8,3634.7,0.24765]
[1736123773610,3.22013466,3634.8,3634.4,3.2078]
[1736123773806,4.29204271,3635.0,3634.4,3.2078]
[1736123773807,0.24765,3634.7,3634.4,3.2078]
[1736123774105,2.21788034,3635.0,3634.4,3.2078]
[1736123774311,0.24763,3635.1,3634.4,3.45547]
[1736123774610,2.21788034,3635.3,3634.4,3.2078]
[1736123774904,0.24765,3634.7,3634.4,3.2078]
[1736123775101,2.21788034,3634.7,3634.4,3.2078]
[1736123775309,2.21788034,3634.7,3634.0,0.4148]
[1736123775609,0.8581,3634.9,3634.2,3.2078]
[1736123775803,0.24765,3634.8,3634.2,3.2078]
[1736123776113,0.419,3634.9,3634.5,0.24766]
[1736123776306,2.21788034,3635.3,3634.8,3.2078]
[1736123776498,0.4509,3635.5,3634.8,3.2078]
[1736123776807,0.4509,3635.5,3634.4,2.21788034]
[1736123776808,0.24765,3634.8,3634.3,3.2078]
[1736123777005,2.21788034,3634.7,3634.3,3.2078]
[1736123777310,2.21788034,3634.7,3633.8,3.2078]
[1736123777311,0.2477,3634.0,3633.8,3.2078]
[1736123777504,2.21788034,3634.1,3633.8,3.2078]
[1736123778212,2.21788034,3634.4,3633.8,3.2078]
[1736123778707,0.2477,3634.0,3633.8,3.2078]
[1736123778903,2.21788034,3634.1,3633.8,3.2078]
[1736123779406,0.2477,3634.0,3633.8,3.2078]
[1736123780006,2.46557034,3634.1,3633.8,3.2078]
[1736123780707,2.46555034,3634.4,3633.8,3.2078]
[1736123781114,2.21788034,3634.4,3633.8,3.2078]
[1736123781407,0.24769,3634.1,3633.8,3.2078]
[1736123782511,0.2477,3634.0,3633.8,3.2078]
[1736123782901,0.24769,3634.2,3633.8,3.2078]
[1736123783408,3.6587,3634.6,3633.8,3.2078]
[1736123783616,3.2078,3634.6,3633.9,0.4064]
[1736123783910,3.2078,3634.6,3634.3,0.24768]
[1736123784215,0.4447,3634.9,3633.9,1.9585]
[1736123784516,0.24766,3634.5,3634.0,0.24769]
[1736123784702,0.24769,3634.1,3633.9,1.5194]
[1736123784901,2.21788034,3634.4,3633.8,3.2078]
[1736123785314,0.24768,3634.3,3633.8,3.45551]
[1736123785606,0.2477,3634.1,3633.8,3.2078]
[1736123786205,2.21788034,3634.4,3633.8,3.2078]
[1736123786408,0.2477,3633.9,3633.8,3.2078]
[1736123786816,2.21788034,3634.4,3633.8,3.2078]
[1736123787129,0.2477,3634.0,3633.8,3.2078]
[1736123788412,0.24768,3634.3,3633.8,3.2078]
[1736123788721,2.21788034,3634.4,3633.8,3.2078]
[1736123788913,0.2477,3634.0,3633.8,3.2078]
[1736123789420,0.24769,3634.1,3633.8,3.2078]
[1736123790116,0.2477,3634.0,3633.8,3.2078]
[1736123790418,0.24768,3634.4,3633.9,0.2477]
[1736123790619,0.4335,3634.5,3633.9,0.2477]
[1736123791215,0.24768,3634.3,3633.8,3.45551]
[1736123791716,0.24769,3634.2,3633.8,3.2078]
[1736123792117,0.24768,3634.3,3633.8,3.45551]
[1736123792713,0.68117,3634.5,3634.0,0.2477]
[1736123792913,0.4335,3634.5,3633.8,3.2078]
[1736123793618,0.68117,3634.5,3634.0,0.24769]
[1736123793917,0.24767,3634.4,3634.0,0.24769]
[1736123794321,2.21788034,3634.7,3633.8,3.2078]
[1736123794624,0.24769,3634.2,3633.8,3.45551]
[1736123794820,0.24768,3634.4,3633.9,0.2477]
[1736123795018,0.24766,3634.5,3633.9,0.2477]
[1736123795221,0.24767,3634.4,3633.9,0.2477]
[1736123795422,3.6486,3634.6,3633.8,3.2078]
[1736123795616,0.24769,3634.2,3633.8,3.2078]
[1736123795921,0.24769,3634.2,3633.8,3.45551]
[1736123796222,0.24766,3634.5,3634.1,0.24769]
[1736123796423,0.4408,3634.6,3633.8,3.2078]
[1736123796624,0.24769,3634.2,3633.8,3.45551]
[1736123796815,2.21788034,3634.4,3633.8,3.2078]
[1736123797023,0.2477,3633.9,3633.8,3.2078]
[1736123797518,0.2477,3633.9,3633.5,0.4254]
[1736123797519,0.24772,3633.7,3633.5,0.4254]
[1736123797817,0.24771,3633.8,3633.5,0.4254]
[1736123798824,0.24771,3633.8,3633.5,0.67313]
[1736123800221,2.21788034,3634.1,3633.5,0.4254]
[1736123800719,0.24777,3633.0,3632.9,3.2078]
[1736123800919,2.46565034,3633.0,3632.9,3.2078]
[1736123801122,0.24777,3633.1,3632.9,3.2078]
[1736123801425,2.21788034,3633.3,3632.9,3.2078]
[1736123801825,0.24777,3633.1,3632.9,3.2078]
[1736123802136,3.2078,3633.4,3632.9,3.2078]
[1736123802316,0.24777,3633.0,3632.9,3.2078]
[1736123803222,2.21788034,3633.0,3632.4,0.4147]
[1736123803425,0.2478,3632.6,3632.4,0.4147]
[1736123803724,0.8398,3632.9,3632.4,0.4147]
[1736123803927,2.21788034,3632.7,3632.4,0.4147]
[1736123804220,0.2478,3632.5,3632.4,0.4147]
[1736123804611,2.21788034,3632.7,3632.3,3.2078]
[1736123804818,0.24783,3632.2,3631.8,3.45565]
[1736123805020,2.46569034,3632.4,3631.9,0.24784]
[1736123805215,0.8398,3632.9,3631.8,3.2078]
[1736123805216,0.2478,3632.6,3632.1,0.24783]
[1736123805825,2.21788034,3632.7,3631.9,0.24784]
[1736123806026,0.24781,3632.4,3631.9,0.24784]
[1736123806523,2.21788034,3632.7,3631.8,3.2078]
[1736123806524,0.24783,3632.1,3631.8,3.2078]
[1736123806721,3.2078,3632.5,3631.8,3.2078]
[1736123807128,0.24781,3632.3,3631.9,0.24784]
[1736123807331,4.0476,3632.9,3631.8,5.42568034]
[1736123807520,0.66637,3632.9,3632.5,0.2478]
[1736123807822,3.2078,3633.3,3632.7,2.21788034]
[1736123808128,0.24774,3633.4,3633.1,0.24776]
[1736123808323,0.24775,3633.3,3633.0,3.2078]
[1736123808721,2.21788034,3633.3,3632.6,3.6206]
[1736123808915,2.21788034,3633.3,3632.6,0.66059]
[1736123809115,2.21788034,3633.3,3632.6,0.4128]
[1736123809324,0.24777,3632.9,3632.6,0.4128]
[1736123810021,2.64798034,3633.3,3632.6,0.4128]
[1736123810228,0.24775,3633.2,3632.8,0.24777]
[1736123810419,0.24776,3633.2,3632.7,0.24778]
[1736123810626,0.24777,3632.9,3632.6,3.6206]
[1736123810824,2.64798034,3633.3,3632.6,3.6206]
[1736123811026,2.64798034,3633.3,3632.6,3.86839]
[1736123811230,0.24776,3633.1,3632.7,0.24779]
[1736123811530,0.24776,3633.1,3632.6,3.6206]
[1736123811531,2.64798034,3633.3,3632.6,3.6206]
[1736123811720,2.89573034,3633.3,3632.9,0.24777]
[1736123811919,3.2078,3633.4,3633.2,0.24775]
[1736123812120,3.2078,3633.4,3633.3,0.4367]
[1736123812325,0.4301,3633.9,3633.3,3.6445]
[1736123812531,0.4088,3634.0,3633.8,0.24771]
[1736123812828,3.22013466,3634.1,3633.4,0.8562]
[1736123813423,4.0308,3634.4,3633.4,1.10394]
[1736123813424,0.24772,3633.8,3633.4,1.10394]
[1736123814231,2.21788034,3633.9,3633.3,3.6445]
[1736123814434,2.21788034,3633.6,3633.1,4.25909718]
[1736123814623,0.24775,3633.3,3633.1,4.25909718]
[1736123814824,0.24775,3633.2,3633.1,4.25909718]
[1736123815130,0.4191,3633.5,3633.1,4.25909718]
[1736123815131,0.24775,3633.3,3633.1,4.25909718]
[1736123815316,0.8296,3633.5,3633.1,4.25909718]
[1736123815522,0.24775,3633.2,3633.1,4.25909718]
[1736123815819,0.8296,3633.5,3633.1,4.25909718]
[1736123816021,0.24775,3633.3,3633.1,4.25909718]
[1736123816223,0.24775,3633.3,3632.8,1.80348]
[1736123817025,0.8296,3633.5,3632.8,1.5557]
[1736123817426,0.24775,3633.2,3632.8,1.80348]
[1736123818333,0.4191,3633.5,3632.8,1.5557]
[1736123818731,3.2078,3633.6,3632.8,1.5557]
[1736123818927,3.22013466,3634.1,3633.6,0.24773]
[1736123819127,0.2477,3634.0,3633.5,3.45553]
[1736123819338,0.2477,3634.0,3633.6,0.24772]
[1736123819630,3.46782466,3634.1,3633.7,0.24772]
[1736123819832,0.24769,3634.1,3633.7,0.24772]
[1736123820130,0.8463,3634.4,3633.5,3.2078]
[1736123820131,2.21788034,3633.9,3633.5,3.2078]
[1736123820334,0.24773,3633.6,3633.5,3.2078]
[1736123820530,2.21788034,3633.6,3633.2,4.25909718]
[1736123820731,0.24775,3633.3,3633.2,4.25909718]
[1736123821027,0.24776,3633.1,3633.0,4.25909718]
[1736123821926,0.24776,3633.1,3632.7,0.67928]
[1736123822229,0.24775,3633.3,3633.0,3.2078]
[1736123822429,0.4148,3633.5,3633.3,0.24774]
[1736123823428,0.4148,3633.5,3633.0,3.2078]
[1736123823634,0.4148,3633.5,3633.2,0.24775]
[1736123824438,0.4148,3633.5,3633.0,7.46689718]
[1736123824929,0.24771,3633.8,3633.0,7.46689718]
[1736123825127,2.21788034,3633.9,3633.0,7.46689718]
[1736123825436,0.24771,3633.8,3633.4,0.24773]
[1736123825731,6.30478034,3634.2,3633.5,0.4119]
[1736123825929,6.30478034,3634.2,3633.6,0.24773]
[1736123826329,0.2477,3634.0,3633.6,0.24773]
[1736123826929,0.24769,3634.1,3633.7,0.24771]
[1736123827131,0.2477,3634.0,3633.6,0.24772]
[1736123827337,0.2477,3634.0,3633.5,0.4119]
[1736123827534,0.24769,3634.1,3633.5,0.4119]
[1736123827831,6.30478034,3634.2,3633.7,0.24771]
[1736123828440,6.30478034,3634.2,3633.5,0.4119]
[1736123828638,0.24771,3633.9,3633.5,0.65963]
[1736123828826,0.24769,3634.1,3633.7,0.24772]
[1736123829229,0.2477,3634.0,3633.6,0.24772]
[1736123829430,6.30478034,3634.2,3633.5,0.4119]
[1736123829737,0.2477,3634.0,3633.6,0.24773]
[1736123829937,6.55247034,3634.2,3633.7,0.24771]
[1736123830237,0.2477,3634.0,3633.5,0.4119]
[1736123830432,0.24773,3633.6,3633.5,0.4119]
[1736123830634,0.24773,3633.5,3633.4,4.25909718]
[1736123830827,0.69583,3633.5,3633.4,4.25909718]
[1736123831030,1.13883,3633.5,3633.4,4.25909718]
[1736123832241,0.24773,3633.5,3633.4,4.25909718]
[1736123832544,0.24775,3633.3,3633.0,3.2078]
[1736123832737,0.4201,3633.4,3633.0,3.2078]
[1736123833536,0.24778,3632.9,3632.7,4.25909718]
[1736123833737,3.09508034,3633.3,3632.8,4.25909718]
[1736123834241,0.24776,3633.2,3632.8,4.50687718]
[1736123834430,0.24777,3633.0,3632.8,4.25909718]
[1736123834934,2.66598034,3633.3,3632.6,4.25909718]
[1736123835139,0.24778,3632.8,3632.6,4.25909718]
[1736123835644,0.24779,3632.7,3632.6,4.25909718]
[1736123836442,0.24779,3632.7,3632.5,3.2078]
[1736123836639,2.21788034,3633.0,3632.5,3.2078]
[1736123836842,0.24779,3632.7,3632.5,3.2078]
[1736123837743,0.24779,3632.6,3632.5,3.2078]
[1736123838946,0.427,3632.9,3632.2,4.25909718]
[1736123838947,2.21788034,3632.7,3632.2,4.25909718]
[1736123839148,0.24781,3632.3,3632.2,4.25909718]
[1736123840556,2.21788034,3632.4,3631.8,0.4286]
[1736123840758,0.24784,3632.0,3631.8,0.4286]
[1736123840951,0.24784,3631.9,3631.8,0.4286]
[1736123842054,2.21788034,3632.4,3631.8,0.4286]
[1736123842258,0.24784,3632.0,3631.8,0.4286]
[1736123842850,2.21788034,3632.4,3631.8,0.4286]
[1736123843657,0.24784,3632.0,3631.8,0.4286]
[1736123843853,4.0612,3632.5,3631.8,0.4286]
[1736123844057,0.24781,3632.4,3632.0,0.24783]
[1736123844253,4.0612,3632.5,3632.0,0.24783]
[1736123844455,3.2078,3632.5,3632.3,0.24781]
[1736123844756,3.2078,3632.5,3631.9,0.4316]
[1736123844955,0.24782,3632.3,3632.0,0.24783]
[1736123845153,0.24781,3632.4,3632.0,0.24783]
[1736123845356,3.6141,3632.5,3631.9,0.4316]
[1736123845556,3.8619,3632.5,3632.1,0.24782]
[1736123845757,0.24781,3632.4,3632.1,0.24782]
[1736123846154,0.24782,3632.3,3632.0,0.24783]
[1736123846354,0.24781,3632.4,3632.0,0.24783]
[1736123846554,3.2078,3632.5,3632.4,0.24781]
[1736123846766,0.24779,3632.7,3632.4,0.24781]
[1736123847064,2.62428034,3633.0,3632.3,3.2078]
[1736123847353,0.2478,3632.5,3632.3,3.2078]
[1736123847657,3.2078,3632.9,3631.9,4.69069718]
[1736123847860,3.2078,3632.9,3632.5,0.2478]
[1736123848054,0.24779,3632.7,3632.2,0.24782]
[1736123848458,0.24778,3632.8,3632.4,0.24781]
[1736123848758,3.45557,3632.9,3632.5,0.2478]
[1736123848948,3.2078,3632.9,3632.2,0.4198]
[1736123849152,3.2078,3633.3,3632.5,3.2078]
[1736123849352,3.22013466,3633.4,3632.9,3.2078]
[1736123849650,5.438015,3633.4,3633.0,0.4262]
[1736123849858,2.21788034,3633.1,3632.9,3.2078]
[1736123850057,0.24777,3632.9,3632.5,0.2478]
[1736123850359,0.24778,3632.8,3632.4,4.25909718]
[1736123850559,5.42568034,3633.1,3632.4,4.25909718]
[1736123850862,0.24778,3632.9,3632.5,0.2478]
[1736123851054,5.42568034,3633.1,3632.4,4.25909718]
[1736123851260,0.24779,3632.6,3632.3,3.2078]
[1736123852156,0.24779,3632.7,3632.3,3.45561]
[1736123852855,0.68858,3632.8,3632.4,0.24781]
[1736123853065,0.68858,3632.8,3632.3,3.45561]
[1736123853066,0.24779,3632.7,3632.3,3.45561]
[1736123853957,0.4408,3632.8,3632.3,3.2078]
[1736123854260,3.2078,3633.1,3632.3,3.2078]
[1736123854456,3.22013466,3633.4,3632.7,3.2078]
[1736123854660,3.22013466,3633.4,3633.3,0.24775]
[1736123855463,3.22013466,3633.4,3633.1,3.2078]
[1736123855661,2.21788034,3633.2,3632.8,0.4275]
[1736123855860,2.21788034,3632.9,3632.3,3.6587]
[1736123856157,0.24778,3632.8,3632.6,8.55445463]
[1736123856562,0.24779,3632.7,3632.6,8.55445463]
[1736123857260,0.24781,3632.4,3632.3,3.2078]
[1736123857665,0.24782,3632.3,3632.1,4.316409]
[1736123857964,0.24782,3632.2,3632.1,4.316409]
[1736123858561,2.21788034,3632.5,3632.1,4.316409]
[1736123858762,0.24782,3632.3,3631.9,3.45564]
[1736123859067,0.24782,3632.2,3631.9,3.2078]
[1736123859255,0.24782,3632.2,3631.9,3.45564]
[1736123859460,0.24782,3632.3,3631.9,3.45564]
[1736123860357,0.24782,3632.2,3631.9,3.45564]
[1736123860664,0.24782,3632.3,3631.9,3.45564]
[1736123860860,2.46569034,3632.5,3632.1,0.24782]
[1736123861061,0.2478,3632.6,3632.2,0.24782]
[1736123861367,0.2478,3632.5,3632.2,0.24782]
[1736123861963,0.2478,3632.5,3632.1,0.24782]
[1736123862267,3.6446,3632.8,3631.9,3.2078]
[1736123862471,0.68458,3632.8,3632.4,0.2478]
[1736123862664,0.24779,3632.7,3632.4,0.2478]
[1736123862863,0.2478,3632.5,3632.4,0.4185]
[1736123863361,0.2478,3632.5,3631.9,3.2078]
[1736123863362,2.21788034,3632.6,3631.9,3.2078]
[1736123863567,2.21788034,3632.6,3632.0,0.4185]
[1736123863767,2.21788034,3632.6,3632.0,0.66633]
[1736123863972,0.24781,3632.4,3632.0,0.66633]
[1736123864274,2.21788034,3632.6,3632.0,0.66633]
[1736123864471,0.24781,3632.3,3632.0,0.4185]
[1736123864667,0.24781,3632.4,3632.0,0.66633]
[1736123865072,0.24782,3632.3,3632.0,0.4185]
[1736123865275,2.21788034,3632.6,3631.9,3.2078]
[1736123865276,0.2478,3632.5,3631.9,3.2078]
[1736123865469,2.21788034,3632.3,3631.9,3.2078]
[1736123865774,0.24785,3631.8,3631.7,0.447]
[1736123866570,2.21788034,3632.0,3631.6,4.316409]
[1736123866784,0.24785,3631.7,3631.6,4.316409]
[1736123867171,0.24785,3631.7,3631.3,0.69488]
[1736123867172,0.8721,3632.2,3631.5,3.2078]
[1736123867365,3.2078,3632.3,3632.2,0.24782]
[1736123867869,3.46792466,3632.7,3632.4,0.24781]
[1736123868073,3.46792466,3632.7,3632.0,3.2078]
[1736123868074,3.46792466,3632.7,3632.5,0.4101]
[1736123868272,0.24778,3632.9,3632.5,0.6579]
[1736123868569,7.54693466,3633.3,3632.9,0.24777]
[1736123868570,6.67568466,3633.3,3632.9,0.24777]
[1736123868773,3.22013466,3633.3,3633.0,3.2078]
[1736123869074,3.22013466,3633.3,3633.2,0.24775]
[1736123869271,3.22013466,3633.3,3633.1,1.07186]
[1736123870177,0.4146,3633.6,3633.1,0.8241]
[1736123870476,0.24775,3633.3,3633.1,0.8241]
[1736123870677,0.4146,3633.6,3633.1,0.8241]
[1736123870872,0.24773,3633.5,3633.1,1.07186]
[1736123871267,0.24774,3633.4,3633.1,1.07186]
[1736123873374,0.4146,3633.6,3633.1,0.4101]
[1736123873576,0.24775,3633.2,3633.1,0.4101]
[1736123873775,0.24777,3632.9,3632.8,4.316409]
[1736123875077,0.8641,3633.6,3632.8,4.316409]
[1736123875377,0.24775,3633.2,3632.9,0.24777]
[1736123875681,0.8641,3633.6,3632.8,4.316409]
[1736123875682,0.24776,3633.1,3632.8,0.24778]
[1736123875881,0.24776,3633.2,3632.8,0.24778]
[1736123876179,0.24776,3633.1,3632.8,0.24778]
[1736123876876,0.8641,3633.6,3632.8,0.24778]
[1736123877074,0.24776,3633.2,3632.8,0.24778]
[1736123877476,0.24778,3632.9,3632.7,4.316409]
[1736123877679,0.24777,3633.0,3632.7,4.316409]
[1736123877981,0.24777,3632.9,3632.7,4.316409]
[1736123878482,0.24777,3632.9,3632.6,7.771999]
[1736123878879,3.22013466,3633.7,3632.9,0.24777]
[1736123879084,0.24775,3633.2,3632.8,0.24778]
[1736123879287,0.24776,3633.1,3632.8,0.24778]
[1736123879877,2.21788034,3633.4,3632.7,3.2078]
[1736123880084,0.24778,3632.8,3632.7,3.2078]
[1736123880782,0.24778,3632.8,3632.7,7.524209]
[1736123881080,0.24776,3633.1,3632.7,7.771989]
[1736123881586,0.24777,3633.0,3632.7,7.524209]
[1736123882585,0.24777,3633.0,3632.7,3.2078]
[1736123882785,0.4503,3633.3,3633.0,0.24776]
[1736123883087,3.46786466,3633.6,3633.1,3.2078]
[1736123883282,3.46786466,3633.6,3633.2,0.66585]
[1736123883679,3.46786466,3633.6,3633.2,0.4181]
[1736123883680,0.24773,3633.5,3633.2,0.4181]
[1736123883985,2.21788034,3633.7,3633.2,0.4181]
[1736123884177,3.2078,3633.8,3633.5,0.24773]
[1736123884381,3.2078,3633.8,3633.2,0.4181]
[1736123884382,3.22013466,3634.0,3633.9,0.2477]
[1736123885582,2.54363466,3634.6,3634.5,0.24766]
[1736123885788,2.54363466,3634.6,3634.5,3.45546]
[1736123886785,2.54363466,3634.6,3634.5,3.2078]
[1736123886985,4.29204271,3634.8,3634.5,3.2078]
[1736123886986,4.29204271,3634.8,3634.7,0.24765]
[1736123887381,0.24762,3635.1,3634.7,0.24765]
[1736123889187,0.24762,3635.2,3634.8,0.24764]
[1736123890074,0.8611,3635.4,3635.0,0.24763]
[1736123890075,1.1087,3635.4,3635.0,0.24763]
[1736123890280,0.8611,3635.4,3634.9,3.2078]
[1736123890478,0.8611,3635.4,3635.3,0.24761]
[1736123890685,0.4464,3635.4,3635.3,0.24761]
[1736123891082,0.69401,3635.4,3635.0,0.24763]
[1736123891386,0.24761,3635.3,3635.0,0.24763]
[1736123892280,0.694,3635.4,3635.0,0.24763]
[1736123893083,0.24763,3635.0,3634.6,0.24765]
[1736123893297,2.21788034,3635.2,3634.5,3.2078]
[1736123893490,2.21788034,3635.2,3634.7,0.24765]
[1736123893790,0.24763,3635.0,3634.7,0.24765]
[1736123893976,2.21788034,3635.2,3634.5,3.2078]
[1736123894182,0.24767,3634.5,3634.2,4.316409]
[1736123894378,0.4134,3634.4,3634.2,4.316409]
[1736123894585,0.66628,3634.3,3634.2,4.316409]
[1736123894784,0.66628,3634.3,3634.1,3.2078]
[1736123894977,0.4186,3634.3,3634.0,0.24769]
[1736123895190,0.4186,3634.3,3633.7,4.316409]
[1736123895387,0.4186,3634.3,3634.1,0.24769]
[1736123895894,0.4186,3634.3,3634.0,0.24769]
[1736123896185,0.4186,3634.3,3633.7,4.316409]
[1736123896394,0.24769,3634.1,3633.7,0.24771]
[1736123896694,0.24769,3634.1,3633.8,0.24771]
[1736123897189,0.66628,3634.3,3633.9,0.2477]
[1736123897391,0.4186,3634.3,3634.0,0.24769]
[1736123897593,0.4186,3634.3,3633.6,5.1897]
[1736123897792,0.4134,3634.4,3634.3,0.24768]
[1736123899395,0.4134,3634.4,3634.1,3.2078]
[1736123899594,0.24768,3634.2,3634.1,3.2078]
[1736123900281,0.24768,3634.2,3633.9,0.2477]
[1736123900593,2.66878034,3634.3,3633.7,3.2078]
[1736123900795,0.24769,3634.1,3633.7,3.45552]
[1736123900991,0.24768,3634.2,3633.7,3.2078]
[1736123901191,0.24771,3633.9,3633.7,3.2078]
[1736123902900,0.2477,3634.0,3633.7,3.2078]
[1736123906291,0.24771,3633.9,3633.7,3.2078]
[1736123906492,3.2078,3634.7,3633.7,3.2078]
[1736123906696,0.24767,3634.5,3634.1,0.24769]
[1736123907592,0.8532,3634.6,3633.7,3.2078]
[1736123907895,3.2078,3634.7,3634.1,3.2078]
[1736123908091,0.8685,3635.1,3634.5,3.2078]
[1736123908292,0.4176,3635.3,3635.2,0.24762]
[1736123909282,0.4469,3635.7,3635.0,3.2078]
[1736123909497,0.4469,3635.7,3634.9,3.2078]
[1736123909693,0.4469,3635.7,3635.0,0.4442]
[1736123909897,0.24759,3635.6,3635.2,0.24761]
[1736123910089,2.46547034,3635.6,3635.2,0.24761]
[1736123910291,0.24761,3635.3,3634.9,3.2078]
[1736123910595,0.24762,3635.2,3634.9,3.2078]
[1736123911390,0.4469,3635.7,3634.9,3.2078]
[1736123911588,2.21788034,3635.5,3634.9,3.2078]
[1736123911989,0.2476,3635.4,3635.0,0.24762]
[1736123913396,2.21788034,3635.5,3634.9,3.2078]
[1736123913598,0.24763,3635.1,3634.9,3.2078]
[1736123913895,2.21788034,3635.2,3634.9,3.2078]
[1736123914092,0.24766,3634.7,3634.4,3.2078]
[1736123914302,2.46553034,3634.8,3634.4,0.24767]
[1736123914590,2.21788034,3634.8,3634.3,4.316409]
[1736123914796,2.21788034,3634.8,3634.3,4.564079]
[1736123915096,0.24766,3634.6,3634.3,4.564079]
[1736123915500,0.24765,3634.7,3634.4,0.24767]
[1736123916096,0.24767,3634.5,3634.1,0.24769]
[1736123916298,2.21788034,3634.5,3634.1,0.24769]
[1736123916495,0.24767,3634.4,3634.0,3.2078]
[1736123916699,0.24767,3634.4,3634.1,0.24768]
[1736123917199,0.24769,3634.1,3634.0,3.2078]
[1736123917892,0.68889,3634.1,3634.0,3.2078]
[1736123918292,0.4412,3634.1,3634.0,3.2078]
[1736123918599,0.68889,3634.1,3634.0,3.2078]
[1736123920196,0.68889,3634.1,3634.0,1.8938]
[1736123920400,0.68889,3634.1,3633.2,6.47461351]
[1736123920401,0.24774,3633.4,3633.2,6.47461351]